bitfinex-derivatives/quotes_ETHF0:USTF0_20250804
["timestamp","ask_amount","ask_price","bid_price","bid_amount"]
[1754293490582,19.27,3548.5,3548.4,6.95529]
[1754293490988,23.6709,3548.5,3548.4,6.95529]
[1754293491178,24.62,3548.5,3548.4,6.95529]
[1754293491380,25.683,3548.5,3548.4,6.95529]
[1754293494585,19.27,3548.5,3548.4,6.95529]
[1754293495687,20.2245,3548.5,3548.4,6.95529]
[1754293495888,19.27,3548.5,3548.4,6.95529]
[1754293496284,25.683,3548.5,3548.4,6.95529]
[1754293497289,25.683,3548.5,3548.4,0.56359]
[1754293497489,27.81780613,3548.5,3548.4,0.56359]
[1754293497989,25.683,3548.5,3548.4,0.56359]
[1754293500490,2.6523,3548.3,3548.2,3.77142]
[1754293500686,25.679,3548.3,3548.2,3.77142]
[1754293501085,25.679,3548.3,3548.2,4.36412]
[1754293501388,25.679,3548.3,3548.2,9.21012]
[1754293501589,25.679,3548.3,3548.2,10.16312]
[1754293503399,3.43467572,3548.3,3548.2,10.16312]
[1754293503587,20.04737572,3548.3,3548.2,10.16312]
[1754293504292,19.265,3548.3,3548.2,10.16312]
[1754293504486,24.615,3548.3,3548.2,10.16312]
[1754293504685,25.678,3548.3,3548.2,10.16312]
[1754293505092,26.46071831,3548.3,3548.2,10.16312]
[1754293505289,26.46073534,3548.3,3548.2,10.16312]
[1754293505491,22.8718,3548.3,3548.2,10.16312]
[1754293505886,19.265,3548.3,3548.2,10.16312]
[1754293506395,2.6523,3548.5,3548.4,2.5441]
[1754293506589,2.6523,3548.5,3548.3,0.56361]
[1754293506590,22.6990288,3548.5,3548.3,0.56361]
[1754293506890,3.4350288,3548.4,3548.3,6.95531]
[1754293507099,7.1957288,3548.4,3548.3,6.95531]
[1754293508693,7.1957288,3548.4,3548.3,6.00231]
[1754293509294,7.1957288,3548.4,3548.3,1.15631]
[1754293510597,7.1957288,3548.4,3548.3,5.12541]
[1754293510797,7.1957288,3548.4,3548.3,6.07841]
[1754293510998,7.1957288,3548.4,3548.3,6.95531]
[1754293512605,8.3103,3549.0,3548.9,3.10762]
[1754293512797,29.81565749,3549.0,3548.9,6.95522]
[1754293513401,29.81465749,3549.0,3548.9,6.95522]
[1754293513898,7.34585749,3549.0,3548.9,6.95522]
[1754293514098,26.60685749,3549.0,3548.9,6.95522]
[1754293515198,7.34585749,3549.0,3548.9,6.95522]
[1754293515395,26.60685749,3549.0,3548.9,6.95522]
[1754293516901,26.60685749,3549.0,3548.9,3.76702]
[1754293517204,26.60685749,3549.0,3548.9,1.15622]
[1754293518205,26.60685749,3549.0,3548.9,0.56352]
[1754293519502,6.3968,3548.3,3548.2,3.77143]
[1754293519705,6.3968,3548.3,3547.7,0.9392]
[1754293519706,1.9374,3547.8,3547.7,1.55471]
[1754293519899,21.8232,3547.8,3547.7,6.88061]
[1754293520300,25.6548,3547.8,3547.7,6.88061]
[1754293520801,21.8232,3547.8,3547.7,6.88061]
[1754293521200,5.0171,3548.0,3547.9,4.44048]
[1754293521404,24.2751,3548.0,3547.9,6.88058]
[1754293521604,25.6548,3548.0,3547.9,6.88058]
[1754293523406,25.6548,3548.0,3547.9,1.20928]
[1754293523612,2.4435,3547.7,3547.6,5.3543]
[1754293523804,27.78960613,3547.7,3547.6,4.41712]
[1754293524108,27.78960613,3547.7,3547.6,3.77152]
[1754293524610,27.83733947,3547.7,3547.6,3.2078]
[1754293524809,3.8316,3547.6,3547.5,0.56374]
[1754293525010,6.3968,3547.6,3547.5,0.56374]
[1754293525802,6.44453334,3547.6,3547.5,0.56374]
[1754293526008,6.3968,3547.4,3547.3,0.56376]
[1754293526200,27.78960613,3547.4,3547.3,0.56376]
[1754293526808,27.83733947,3547.4,3547.2,0.56378]
[1754293527113,6.3968,3547.3,3547.2,0.56378]
[1754293527808,6.44453334,3547.3,3547.2,0.56378]
[1754293528616,6.44453334,3547.3,3547.2,1.20938]
[1754293528913,0.04773334,3547.3,3547.2,6.88068]
[1754293529114,19.30773334,3547.3,3547.2,6.88068]
[1754293529302,19.30673334,3547.3,3547.2,9.01548613]
[1754293529707,40.58,3548.0,3547.9,0.56368]
[1754293529909,44.4116,3548.0,3547.9,6.88058]
[1754293530109,59.839,3548.0,3547.9,6.88058]
[1754293531821,44.4116,3548.0,3547.9,6.88058]
[1754293532118,63.6706,3548.0,3547.9,6.88058]
[1754293532510,62.2909,3548.0,3547.9,6.88058]
[1754293532715,40.58,3548.0,3547.9,6.88058]
[1754293532915,2.3178,3548.2,3548.1,0.56365]
[1754293533120,25.6548,3548.2,3548.1,6.88055]
[1754293533617,6.3968,3548.2,3548.1,6.88055]
[1754293533818,6.3968,3548.5,3548.4,6.8805]
[1754293534022,26.43475038,3548.5,3548.4,6.8805]
[1754293534416,44.4156,3548.9,3548.8,6.88044]
[1754293534714,63.82402522,3548.9,3548.8,6.88044]
[1754293535115,63.6726,3548.9,3548.8,6.88044]
[1754293535621,44.4156,3548.9,3548.8,6.88044]
[1754293535822,63.6726,3548.9,3548.8,6.88044]
[1754293537918,39.94428,3548.9,3548.8,6.88044]
[1754293538221,6.3968,3549.4,3549.3,6.88036]
[1754293538409,26.43122832,3549.4,3549.3,6.88036]
[1754293539430,25.6518,3549.4,3549.3,6.88036]
[1754293539622,25.6518,3549.4,3549.3,3.1375]
[1754293539829,6.3968,3549.3,3549.2,0.56347]
[1754293541129,6.3968,3549.2,3549.1,0.56348]
[1754293541432,6.3968,3549.2,3549.0,3.2078]
[1754293541433,0.8776,3549.1,3548.9,0.56351]
[1754293541628,25.6498,3549.0,3548.8,0.56353]
[1754293541828,8.53160613,3548.9,3548.8,0.56353]
[1754293543433,8.53160613,3548.9,3548.8,1.20913]
[1754293543620,8.53160613,3548.9,3548.8,0.56353]
[1754293545030,8.53160613,3548.9,3548.8,6.87793]
[1754293547335,8.53160613,3548.9,3548.8,5.95233]
[1754293547535,6.3968,3548.9,3548.8,5.95233]
[1754293547729,6.3968,3548.9,3548.8,3.11293]
[1754293547730,8.53160613,3548.9,3548.8,3.11293]
[1754293548235,8.53160613,3548.9,3548.8,5.95233]
[1754293549739,8.53160613,3548.9,3548.8,2.20013]
[1754293550932,8.53160613,3548.9,3548.8,3.52883]
[1754293551137,8.54080613,3548.9,3548.8,6.87793]
[1754293552539,5.95800613,3548.9,3548.8,6.87793]
[1754293552835,8.54080613,3548.9,3548.8,6.87793]
[1754293559144,9.32002575,3548.9,3548.8,6.87793]
[1754293560145,9.33692575,3548.9,3548.8,6.87793]
[1754293560844,6.3802,3549.4,3549.3,6.87006]
[1754293561038,2.67260539,3549.4,3549.3,10.07786]
[1754293561237,1.01247616,3549.8,3549.7,3.10499]
[1754293561537,1.01247616,3549.8,3549.7,6.86999]
[1754293561538,19.39883941,3549.8,3549.7,6.86999]
[1754293561949,19.39883941,3549.8,3549.7,10.07779]
[1754293562242,19.247,3549.8,3549.7,10.07779]
[1754293562539,1e-05,3549.9,3549.8,6.3066]
[1754293562747,19.24701,3549.9,3549.8,6.3066]
[1754293563939,4.47327616,3550.8,3550.7,2.5416]
[1754293564140,25.7768529,3550.8,3550.7,3.8703]
[1754293564444,25.7768529,3550.8,3550.7,5.94423]
[1754293564834,25.7768529,3550.8,3550.7,0.56323]
[1754293565240,25.6252,3550.8,3550.7,0.56323]
[1754293565840,25.6252,3550.8,3550.6,0.56324]
[1754293566036,3.4608,3550.2,3550.1,6.31273]
[1754293566239,3.4608,3550.2,3550.1,0.56333]
[1754293566240,27.75900613,3550.2,3550.1,0.56333]
[1754293567134,27.75900613,3550.2,3550.1,5.94433]
[1754293568342,25.6242,3550.2,3550.1,6.86993]
[1754293569345,25.6242,3550.2,3550.1,5.94433]
[1754293569538,27.75900613,3550.2,3550.1,5.94433]
[1754293569737,6.3802,3550.1,3550.0,0.56334]
[1754293570344,2.5208,3550.1,3549.9,0.56335]
[1754293570647,24.83660613,3550.0,3549.9,0.56335]
[1754293570840,27.75600613,3550.0,3549.6,2.8394]
[1754293571051,6.3802,3549.9,3549.8,0.56337]
[1754293571848,6.3802,3549.9,3549.8,1.57677]
[1754293572450,6.3802,3549.7,3549.6,0.5634]
[1754293572647,27.75500613,3549.7,3549.6,0.5634]
[1754293573353,27.75500613,3549.7,3549.3,3.2078]
[1754293573354,27.75500613,3549.7,3549.5,0.56342]
[1754293573649,6.3802,3549.6,3549.5,0.56342]
[1754293574153,21.37480613,3549.7,3549.2,0.56347]
[1754293574154,0.9146,3549.3,3549.2,0.56347]
[1754293574445,22.7627,3549.3,3549.2,6.10827]
[1754293574646,22.7627,3549.3,3549.2,7.02247]
[1754293574647,24.3216,3549.3,3549.2,7.02247]
[1754293574847,25.627,3549.3,3549.2,7.02247]
[1754293576047,19.24,3549.3,3549.2,7.02247]
[1754293576457,4.42802,3548.9,3548.8,3.2078]
[1754293576646,3.8279,3548.3,3547.7,1.3867]
[1754293576959,20.2641,3548.2,3548.1,7.02265]
[1754293577256,1.5589,3548.4,3548.1,3.13725]
[1754293577447,22.7717,3548.3,3548.2,6.459]
[1754293577650,25.636,3548.3,3548.2,2.5736]
[1754293577955,3.8645,3548.2,3548.1,4.52395]
[1754293578150,5.4234,3548.2,3548.1,7.02265]
[1754293578345,8.6312,3548.5,3548.4,4.8745]
[1754293578550,27.8782,3548.5,3548.4,6.459]
[1754293578751,30.97660613,3548.5,3548.4,6.459]
[1754293579257,30.97660613,3548.5,3548.4,5.5448]
[1754293579455,27.71229613,3548.5,3548.1,0.9142]
[1754293579660,2.5591,3548.3,3548.2,5.5448]
[1754293579956,25.636,3548.3,3548.2,6.459]
[1754293581650,25.636,3548.3,3548.2,5.5448]
[1754293581852,22.7677,3548.3,3548.2,6.459]
[1754293582558,20.2106,3548.3,3548.2,9.6668]
[1754293582759,3.1469,3548.5,3548.4,2.5736]
[1754293582960,24.3266,3548.5,3548.4,6.459]
[1754293583457,25.632,3548.5,3548.4,6.459]
[1754293583765,26.19558,3548.5,3548.4,6.459]
[1754293583955,26.19558,3548.5,3548.4,5.5448]
[1754293584459,6.387,3548.5,3548.4,6.1084]
[1754293584650,27.76680613,3548.5,3548.4,7.0226]
[1754293584850,27.76680613,3548.5,3548.4,6.459]
[1754293585252,27.76680613,3548.5,3548.4,5.5448]
[1754293586159,27.76680613,3548.5,3548.4,6.459]
[1754293586363,8.52180613,3548.5,3548.4,6.459]
[1754293586559,25.632,3548.5,3548.4,6.459]
[1754293586761,1.588,3548.5,3548.4,6.459]
[1754293586962,3.5227,3548.7,3548.6,6.459]
[1754293587157,2.1833,3548.9,3548.8,0.9066]
[1754293587465,20.833,3548.9,3548.8,6.459]
[1754293587958,25.632,3548.9,3548.8,6.459]
[1754293588263,25.633,3548.9,3548.8,6.459]
[1754293590863,19.246,3548.9,3548.8,6.459]
[1754293591062,20.2096,3548.9,3548.8,6.459]
[1754293591260,25.633,3548.9,3548.8,6.459]
[1754293591458,20.2096,3548.9,3548.8,6.459]
[1754293591662,24.0741,3548.9,3548.8,6.459]
[1754293591857,3.2078,3549.0,3548.9,7.02252]
[1754293592255,3.2078,3549.8,3549.7,0.56339]
[1754293592456,3.2078,3549.8,3549.7,4.05119]
[1754293592457,24.0731,3549.8,3549.7,4.05119]
[1754293592660,20.2086,3549.8,3549.7,4.05119]
[1754293592858,0.6244,3550.0,3549.9,4.52366]
[1754293593062,19.274,3550.0,3549.9,7.02236]
[1754293593267,19.274,3550.0,3549.9,10.23016]
[1754293593658,0.9636,3550.1,3549.9,10.23016]
[1754293593862,19.273,3550.0,3549.9,6.34476]
[1754293594058,20.2366,3550.0,3549.9,6.34476]
[1754293594366,19.273,3550.0,3549.9,10.23016]
[1754293594556,3.5227,3550.2,3550.1,3.13693]
[1754293594769,25.659,3550.2,3550.1,7.02233]
[1754293594966,6.387,3550.5,3550.4,6.10808]
[1754293595161,25.655,3550.5,3550.4,7.02228]
[1754293595369,22.7897,3550.5,3550.4,7.02228]
[1754293596464,3.5227,3550.5,3550.4,7.02228]
[1754293596664,25.653,3550.5,3550.4,6.10808]
[1754293596966,25.653,3550.5,3550.4,0.56328]
[1754293597165,5.7669,3550.7,3550.6,3.13685]
[1754293597365,1.588,3551.0,3550.9,7.0222]
[1754293597671,26.48940613,3551.0,3550.9,0.5632]
[1754293597867,25.663,3551.0,3550.9,0.5632]
[1754293598168,24.3576,3551.0,3550.9,7.0222]
[1754293598467,22.7987,3551.0,3550.9,7.0222]
[1754293598667,25.663,3551.0,3550.9,7.0222]
[1754293599664,6.387,3551.0,3550.9,7.0222]
[1754293599869,25.659,3551.0,3550.9,7.0222]
[1754293600670,25.659,3551.0,3550.9,6.108]
[1754293603369,25.659,3551.0,3550.9,7.0222]
[1754293604473,25.659,3551.0,3550.9,6.108]
[1754293605076,25.659,3551.0,3550.9,0.5632]
[1754293605473,25.659,3551.0,3550.9,3.5534]
[1754293605673,25.659,3551.0,3550.9,5.9394]
[1754293605874,25.659,3551.0,3550.9,6.9004]
[1754293606078,23.08,3551.0,3550.9,6.9004]
[1754293606573,21.7746,3551.0,3550.9,6.9004]
[1754293606769,21.7576,3551.0,3550.9,6.9004]
[1754293607375,25.6349,3551.0,3550.9,6.9004]
[1754293607574,5.0548,3551.0,3550.9,6.9004]
[1754293607870,22.8172,3551.0,3550.9,6.9004]
[1754293608074,44.2783,3551.2,3551.1,6.90037]
[1754293608276,63.5303,3551.2,3551.1,6.90037]
[1754293612075,63.5263,3551.2,3551.1,6.90037]
[1754293612470,63.5223,3551.2,3551.1,6.90037]
[1754293612671,63.5213,3551.2,3551.1,6.90037]
[1754293612876,44.2783,3551.2,3551.1,6.90037]
[1754293613077,63.5213,3551.2,3551.1,6.90037]
[1754293613277,63.5203,3551.2,3551.1,6.90037]
[1754293614875,44.2783,3551.2,3551.1,6.90037]
[1754293615082,63.5183,3551.2,3551.1,6.90037]
[1754293615576,44.2783,3551.2,3551.1,6.90037]
[1754293615781,63.5153,3551.2,3551.1,6.90037]
[1754293616278,63.5153,3551.2,3551.1,5.93937]
[1754293619583,63.5153,3551.2,3551.1,5.94959271]
[1754293620784,63.5153,3551.2,3551.1,0.01022271]
[1754293622073,64.29142099,3551.2,3551.1,0.01022271]
[1754293623886,64.29142099,3551.2,3551.1,5.38642271]
[1754293626080,64.28842099,3551.2,3551.1,6.34742271]
[1754293626384,45.05442099,3551.2,3551.1,6.34742271]
[1754293626583,64.28842099,3551.2,3551.1,6.34742271]
[1754293627575,41.34712099,3551.2,3551.1,5.38642271]
[1754293627780,20.01012099,3551.2,3551.1,9.55522271]
[1754293628087,19.234,3551.2,3551.1,9.55522271]
[1754293628286,20.1236,3551.2,3551.1,9.55522271]
[1754293628480,25.4923,3551.2,3551.1,9.55522271]
[1754293628678,25.4923,3551.2,3551.1,9.55675604]
[1754293629087,5.3687,3551.8,3551.7,0.6423]
[1754293629287,7.18748857,3551.8,3551.7,5.93927]
[1754293629484,26.42148857,3551.8,3551.7,6.90027]
[1754293629687,26.42148857,3551.8,3551.7,6.91202604]
[1754293630182,26.42148857,3551.8,3551.7,5.95102604]
[1754293630585,26.42048857,3551.8,3551.7,5.95102604]
[1754293631287,26.26862443,3551.8,3551.7,5.95102604]
[1754293631887,4.21792443,3551.8,3551.7,5.95102604]
[1754293632186,26.26862443,3551.8,3551.7,6.91202604]
[1754293634490,7.03562443,3551.8,3551.7,6.91202604]
[1754293634788,26.26762443,3551.8,3551.7,6.91202604]
[1754293635690,26.26762443,3551.8,3551.7,5.95102604]
[1754293636286,28.40332319,3551.8,3551.7,0.57482604]
[1754293637593,28.40332319,3551.8,3551.7,0.57630711]
[1754293638195,24.78992443,3551.8,3551.7,1.63500711]
[1754293638384,28.45522319,3551.8,3551.7,0.57630711]
[1754293639788,7.08852443,3551.8,3551.7,0.57630711]
[1754293640094,26.31952443,3551.8,3551.7,2.86560711]
[1754293640284,26.31952443,3551.8,3551.7,1.63500711]
[1754293640488,26.31952443,3551.8,3551.7,0.57630711]
[1754293645894,26.31952443,3551.8,3551.7,0.01323711]
[1754293646395,26.31952443,3551.8,3551.7,0.01470792]
[1754293647197,29.52732443,3551.8,3551.7,0.01470792]
[1754293651692,29.52732443,3551.8,3551.7,1.24530792]
[1754293651897,29.52632443,3551.8,3551.7,5.36520792]
[1754293652395,29.67729924,3551.8,3551.7,5.36520792]
[1754293653909,29.67729924,3551.8,3551.7,2.53020792]
[1754293654199,29.67539686,3551.8,3551.7,0.01470792]
[1754293654996,10.44539686,3551.8,3551.7,0.01470792]
[1754293655301,29.67539686,3551.8,3551.7,3.43813358]
[1754293655695,29.67539686,3551.8,3551.7,5.36673358]
[1754293656298,10.44546695,3551.8,3551.7,5.36673358]
[1754293656504,29.67546695,3551.8,3551.7,6.29073358]
[1754293656700,23.36426695,3551.8,3551.7,5.36673358]
[1754293656999,21.04196695,3551.8,3551.7,6.29073358]
[1754293658003,22.57156695,3551.8,3551.7,6.29073358]
[1754293658504,3.34156695,3551.8,3551.7,6.29073358]
[1754293658700,22.57056695,3551.8,3551.7,6.29073358]
[1754293659001,25.32046695,3551.8,3551.7,6.29073358]
[1754293659203,26.39596695,3551.8,3551.7,6.29073358]
[1754293659902,7.16696695,3551.8,3551.7,6.29073358]
[1754293660102,26.39596695,3551.8,3551.7,6.29073358]
[1754293660311,7.16696695,3551.8,3551.7,6.29073358]
[1754293660604,26.39596695,3551.8,3551.7,6.29073358]
[1754293661406,20.15546695,3551.8,3551.7,5.36673358]
[1754293661599,24.44096695,3551.8,3551.7,6.29073358]
[1754293662104,5.21196695,3551.8,3551.7,6.29073358]
[1754293662309,24.44096695,3551.8,3551.7,6.29073358]
[1754293662602,21.66356695,3551.8,3551.7,6.29073358]
[1754293664095,21.66356695,3551.8,3551.7,6.29215282]
[1754293664904,21.03996695,3551.8,3551.7,6.29215282]
[1754293665106,20.88892205,3551.8,3551.7,6.29215282]
[1754293666404,20.00342205,3551.8,3551.7,6.29215282]
[1754293667801,21.56802205,3551.8,3551.7,6.29215282]
[1754293668102,26.07562205,3551.8,3551.7,6.29215282]
[1754293670811,20.95752205,3551.8,3551.7,6.29215282]
[1754293671214,0.77542205,3551.8,3551.7,6.29215282]
[1754293671411,0.77542205,3551.9,3551.8,4.22506]
[1754293671606,0.77542205,3551.9,3551.8,6.66126]
[1754293671912,20.00142205,3551.9,3551.8,6.66126]
[1754293672113,19.226,3551.9,3551.8,6.67891282]
[1754293673312,19.226,3551.9,3551.8,6.68035507]
[1754293674206,20.1801,3551.9,3551.8,6.68035507]
[1754293675111,21.6664,3551.9,3551.8,6.68035507]
[1754293675303,23.5031,3551.9,3551.8,6.68035507]
[1754293675505,24.3028,3551.9,3551.8,6.68035507]
[1754293675707,25.2982,3551.9,3551.8,6.68035507]
[1754293676218,22.5857,3551.9,3551.8,6.68035507]
[1754293676609,25.2982,3551.9,3551.8,6.68035507]
[1754293677210,22.8165,3551.9,3551.8,6.68035507]
[1754293677515,25.2982,3551.9,3551.8,6.68035507]
[1754293681118,25.2982,3551.9,3551.8,0.58215507]
[1754293681311,27.43389876,3551.9,3551.8,0.58215507]
[1754293683912,25.2982,3551.9,3551.8,0.58215507]
[1754293684306,26.07223724,3551.9,3551.8,0.58215507]
[1754293685422,26.07223724,3551.9,3551.8,5.79095507]
[1754293685719,25.2982,3551.9,3551.8,5.79095507]
[1754293686912,25.2982,3551.9,3551.8,6.68035507]
[1754293688921,25.2982,3551.9,3551.8,5.79095507]
[1754293690125,25.2982,3551.9,3551.8,6.68035507]
[1754293690427,6.0722,3551.9,3551.8,6.68035507]
[1754293690725,25.2932,3551.9,3551.8,6.68035507]
[1754293692125,26.06782863,3551.9,3551.8,6.68035507]
[1754293692735,6.84682863,3551.9,3551.8,6.68035507]
[1754293693033,25.2932,3551.9,3551.8,6.68035507]
[1754293694528,6.0722,3551.9,3551.8,6.68035507]
[1754293694729,25.2932,3551.9,3551.8,6.68035507]
[1754293695638,25.2932,3551.9,3551.8,5.79095507]
[1754293696236,26.06716543,3551.9,3551.8,5.79095507]
[1754293696432,6.84716543,3551.9,3551.8,5.79095507]
[1754293696632,26.06716543,3551.9,3551.8,5.79095507]
[1754293696934,6.84716543,3551.9,3551.8,5.79095507]
[1754293697140,26.06716543,3551.9,3551.8,5.79095507]
[1754293698136,26.06716543,3551.9,3551.8,6.75395507]
[1754293698343,26.25336543,3551.9,3551.8,6.75395507]
[1754293699840,26.25336543,3551.9,3551.8,2.97345507]
[1754293700049,26.25336543,3551.9,3551.8,1.55325507]
[1754293700250,26.25336543,3551.9,3551.8,5.87835507]
[1754293700440,26.25336543,3551.9,3551.8,6.84135507]
[1754293702245,7.03336543,3551.9,3551.8,6.84135507]
[1754293702434,19.99396543,3551.9,3551.8,6.84135507]
[1754293702844,0.77496543,3551.9,3551.8,6.84135507]
[1754293703040,19.99296543,3551.9,3551.8,6.84135507]
[1754293703741,20.90566543,3551.9,3551.8,6.84135507]
[1754293704135,0.77496543,3551.9,3551.8,6.84135507]
[1754293704347,19.99296543,3551.9,3551.8,6.84135507]
[1754293704947,20.90566543,3551.9,3551.8,6.84135507]
[1754293705446,24.32586543,3551.9,3551.8,6.84135507]
[1754293705648,19.99296543,3551.9,3551.8,6.84135507]
[1754293706046,24.32586543,3551.9,3551.8,6.84135507]
[1754293706349,26.25136543,3551.9,3551.8,6.84135507]
[1754293707749,26.25136543,3551.9,3551.8,6.82226]
[1754293707950,26.26227036,3551.9,3551.8,6.82226]
[1754293708944,26.26227036,3551.9,3551.8,5.85926]
[1754293709347,26.25136543,3551.9,3551.8,5.85926]
[1754293711150,26.25136543,3551.9,3551.8,0.56306]
[1754293711849,2.5169,3551.4,3551.3,2.22684]
[1754293712050,21.7339,3551.4,3551.3,5.92924]
[1754293712447,25.4754,3551.4,3551.3,4.00534]
[1754293712653,26.24953345,3551.4,3551.3,5.92924]
[1754293712855,26.24953345,3551.4,3551.3,6.89224]
[1754293713654,25.4754,3551.4,3551.3,6.89224]
[1754293714959,26.24908531,3551.4,3551.3,5.92924]
[1754293715451,25.4754,3551.4,3551.3,6.89224]
[1754293716556,26.24881409,3551.4,3551.3,0.56314]
[1754293717155,26.24881409,3551.4,3551.3,4.07214]
[1754293717359,25.4754,3551.4,3551.3,5.11314]
[1754293717858,25.4754,3551.4,3551.3,0.56314]
[1754293718057,26.24869257,3551.4,3551.3,0.56314]
[1754293718455,25.4754,3551.4,3551.3,0.56314]
[1754293719549,23.4754,3551.4,3551.3,0.56314]
[1754293719760,25.4009,3551.4,3551.3,0.56314]
[1754293721355,25.4009,3551.4,3551.3,5.92924]
[1754293722458,25.3999,3551.4,3551.3,5.30654]
[1754293722665,25.3999,3551.4,3551.3,5.92924]
[1754293723561,20.5955,3551.4,3551.3,5.92924]
[1754293723760,25.3999,3551.4,3551.3,6.89224]
[1754293724761,1.01247616,3552.1,3551.3,5.3661]
[1754293724960,3.709,3552.1,3552.0,5.15263]
[1754293725160,3.709,3552.1,3552.0,6.64143]
[1754293725161,25.41346094,3552.1,3552.0,6.64143]
[1754293725462,26.36256094,3552.1,3552.0,6.64143]
[1754293725862,24.79886094,3552.1,3552.0,6.64143]
[1754293726064,26.36256094,3552.1,3552.0,6.64143]
[1754293726967,26.21054694,3552.1,3552.0,6.64143]
[1754293728068,6.99454694,3552.1,3552.0,6.64143]
[1754293728268,26.20954694,3552.1,3552.0,6.64143]
[1754293730272,6.99454694,3552.1,3552.0,6.64143]
[1754293730472,26.20754694,3552.1,3552.0,6.64143]
[1754293731273,26.20754694,3552.1,3552.0,5.75533]
[1754293731868,26.20754694,3552.1,3552.0,0.56303]
[1754293733269,26.20754694,3552.1,3552.0,2.82733]
[1754293733471,26.20754694,3552.1,3552.0,5.13013]
[1754293733677,26.20754694,3552.1,3552.0,3.89393]
[1754293734484,25.66104694,3552.1,3552.0,0.56303]
[1754293736373,25.66104694,3552.1,3552.0,4.17413]
[1754293736582,25.66104694,3552.1,3552.0,6.64143]
[1754293738184,20.58744694,3552.1,3552.0,5.75533]
[1754293738374,22.73484694,3552.1,3552.0,6.64143]
[1754293738581,26.20754694,3552.1,3552.0,6.64143]
[1754293739677,26.20754694,3552.1,3552.0,0.56303]
[1754293739885,4.0744,3552.0,3551.9,3.28804]
[1754293740075,6.2218,3552.0,3551.9,4.79934]
[1754293740277,6.2218,3552.0,3551.9,6.64144]
[1754293740982,6.99394659,3552.0,3551.9,6.64144]
[1754293742792,3.84588659,3552.0,3551.8,0.56305]
[1754293742989,26.20394659,3551.9,3551.8,0.56305]
[1754293743288,26.20394659,3551.9,3551.8,2.05185]
[1754293743483,26.20394659,3551.9,3551.8,3.28805]
[1754293743692,26.20394659,3551.9,3551.8,6.64145]
[1754293743990,26.20394659,3551.9,3551.8,0.56305]
[1754293744284,6.2218,3551.8,3551.7,4.79937]
[1754293744488,6.99394659,3551.8,3551.7,4.79937]
[1754293744993,6.2218,3551.8,3551.7,6.64147]
[1754293745488,19.21,3551.9,3551.7,3.03037]
[1754293745691,19.21,3551.9,3551.8,6.0784]
[1754293745882,9.4296,3552.2,3552.1,6.64141]
[1754293746082,29.41185391,3552.2,3552.1,6.64141]
[1754293746987,6.49075391,3552.2,3552.1,6.64141]
[1754293747191,25.69975391,3552.2,3552.1,6.64141]
[1754293747393,24.84795391,3552.2,3552.1,6.64141]
[1754293748392,23.18905391,3552.2,3552.1,6.64141]
[1754293748589,22.4168,3552.2,3552.1,6.64141]
[1754293750381,40.54,3552.7,3552.6,3.03023]
[1754293750586,60.520389,3552.7,3552.6,6.64133]
[1754293751390,60.519389,3552.7,3552.6,6.64133]
[1754293751595,41.312389,3552.7,3552.6,6.64133]
[1754293751897,60.519389,3552.7,3552.6,6.64133]
[1754293752389,3.2078,3552.8,3552.6,6.64133]
[1754293752588,1.0,3553.0,3552.9,6.64128]
[1754293752589,1.6017,3553.0,3552.9,6.64128]
[1754293752791,20.207,3553.0,3552.9,6.64128]
[1754293752995,20.97918664,3553.0,3552.9,6.64128]
[1754293753192,1.0,3553.0,3552.9,6.64128]
[1754293753493,20.207,3553.0,3552.9,6.64128]
[1754293754086,23.0989,3553.0,3552.9,6.64128]
[1754293754292,26.322,3553.0,3552.9,6.64128]
[1754293754494,24.0476,3553.0,3552.9,6.64128]
[1754293754991,22.8146,3553.0,3552.9,6.64128]
[1754293755393,20.8087,3553.0,3552.9,6.64128]
[1754293756194,22.0417,3553.0,3552.9,6.64128]
[1754293756394,26.2482,3553.0,3552.9,6.64128]
[1754293760993,20.207,3553.0,3552.9,6.64128]
[1754293761191,20.202,3553.0,3552.9,6.64128]
[1754293761789,5.308,3554.0,3553.9,4.53543]
[1754293761993,10.18517589,3554.0,3553.9,3.9727]
[1754293762197,29.23578283,3554.0,3553.9,1.5968]
[1754293762396,3.8744,3553.5,3553.4,2.3759]
[1754293762597,3.2078,3554.0,3553.7,0.56276]
[1754293762904,6.0561,3554.0,3553.9,2.93861]
[1754293763198,19.201,3554.2,3554.0,0.5627]
[1754293763394,25.2571,3554.2,3554.1,6.1269]
[1754293763694,19.9704277,3554.2,3554.1,4.5301]
[1754293763902,19.201,3554.2,3554.1,6.1269]
[1754293764203,3.3864004,3554.4,3554.3,6.1269]
[1754293764404,28.6435004,3554.4,3554.3,6.1269]
[1754293766894,2.3908,3554.2,3554.1,0.56269]
[1754293767099,6.0561,3554.1,3554.0,3.9727]
[1754293767303,6.0561,3554.1,3554.0,6.1269]
[1754293768901,3.8744,3554.1,3553.9,3.77051]
[1754293769105,6.0561,3553.9,3553.8,5.88854]
[1754293769305,25.2531,3553.9,3553.8,5.88854]
[1754293769599,25.2531,3553.9,3553.8,5.3258]
[1754293769797,3.6653,3553.8,3553.6,1.5968]
[1754293769997,25.2531,3553.7,3553.6,4.0596]
[1754293770198,25.2531,3553.7,3553.4,1.2662]
[1754293770405,2.3908,3553.3,3553.2,5.42354]
[1754293770599,25.2531,3553.3,3553.2,6.68974]
[1754293771301,25.2531,3553.3,3553.2,6.1269]
[1754293771602,25.2531,3553.3,3553.2,3.9727]
[1754293771803,25.2531,3553.3,3553.2,6.1269]
[1754293772593,25.2531,3553.3,3553.2,2.3759]
[1754293772792,25.2531,3553.3,3553.2,0.5919]
[1754293773002,3.6653,3553.2,3553.1,1.5968]
[1754293773197,6.0561,3553.2,3553.1,3.1716]
[1754293773605,6.0561,3553.2,3553.1,5.3258]
[1754293773792,6.0561,3553.2,3553.1,6.1269]